Cogmind - Beta 16 @@@ ROGUE MODE // 2025.10.31 @ 14:08:35 Player: Rocko1345 Result: Destroyed by S-27 Virus with Autogun Performance ------------- Evolutions (4) 2000 Regions Visited (7) 1400 Robots Destroyed (92) 460 Value Destroyed (3112) 3112 Prototype IDs (4) 80 Alien Tech Used (0) 0 Bonus (0) 0 TOTAL SCORE: 7052 Bonus ------- None Cogmind --------- Core Integrity 0/850 Matter 245/300 Energy 122/350 System Corruption 5% Temperature Cool (0) Movement Core (250) Ox4 Location -6/Factory Parts ------- > --- POWER (2) -------- (None) > --- PROPULSION (4) --- (None) > --- UTILITY (5) ------ Medium Storage Unit High-capacity Battery > --- WEAPON (4) ------- (None) > --- INVENTORY (10) --- EM Shield Heavy Ion Cannon Peak State ------------ > --- POWER ------------ Improved Deuterium Engine > --- PROPULSION ------- Armored Treads Medium Treads Medium Treads Medium Treads > --- UTILITY ---------- Cryofiber Web Improved Heat Sink Huge Storage Unit Improved Shield Generator > --- WEAPON ----------- Beam Rifle Beam Rifle Molecular Deconstructor > --- INVENTORY -------- Deuterium Engine Deuterium Engine Advanced Treads Advanced Treads Advanced Treads Cryofiber Web Coolant Injector Large Battery High-capacity Battery Transport Network Coupler Medium Reactive Plating EM Disruption Field Hacking Suite Trap Extractor Heavy Laser Gatling Laser Beam Cannon Heavy Particle Cannon Heavy Particle Cannon Heavy Particle Cannon Heavy Ion Cannon Improved Grenade Launcher Improved Grenade Launcher [Rating: 58] Favorites ----------- Power Improved Deuterium Engine Engine Improved Deuterium Engine Power Core Neutrino Core Propulsion Advanced Treads Treads Advanced Treads Leg Aluminum Leg Wheel Compact Wheel Hover Unit Improved Hover Unit Utility Cryofiber Web Device Cryofiber Web Storage Huge Storage Unit Protection Medium Reactive Plating Weapon Beam Rifle Energy Gun Beam Rifle Energy Cannon Ion Cannon Ballistic Gun Light Assault Rifle Launcher Improved Grenade Launcher Special Weapon Molecular Deconstructor Build | -11 -10 -9 -8 -7 -7 -7 -6 ------- Run | Yrd Mat Mat Mat Fac Low Low Fac Slots Evolved 8 | . . 2 2 2 . . 2 Power 1 | . . . . . . . 1 Propulsion 2 | . . . 2 . . . . Utility 3 | . . . . 2 . . 1 Weapon 2 | . . 2 . . . . . Parts Attached 84 | 6 12 18 5 13 11 . 19 Power 13 | 1 1 2 1 2 2 . 4 Engine 11 | 1 1 2 1 2 2 . 2 Core 2 | . . . . . . . 2 Reactor . | . . . . . . . . Propulsion 25 | 2 5 4 3 3 2 . 6 Treads 13 | . . 4 3 3 2 . 1 Leg 8 | 2 3 . . . . . 3 Wheel 2 | . . . . . . . 2 Hover 2 | . 2 . . . . . . Flight . | . . . . . . . . Utility 16 | 1 3 2 . 3 2 . 5 Device 11 | . 3 1 . 3 2 . 2 Storage 4 | 1 . 1 . . . . 2 Processor . | . . . . . . . . Hackware . | . . . . . . . . Protection 1 | . . . . . . . 1 Artifact . | . . . . . . . . Weapon 30 | 2 3 10 1 5 5 . 4 Energy Gun 14 | 1 2 5 . 2 3 . 1 Energy Cannon 10 | . . 5 1 3 1 . . Ballistic Gun 3 | 1 1 . . . . . 1 Ballistic Cannon . | . . . . . . . . Launcher 2 | . . . . . . . 2 Special Weapon 1 | . . . . . 1 . . Impact Weapon . | . . . . . . . . Slashing Weapon . | . . . . . . . . Piercing Weapon . | . . . . . . . . Special Melee Weapon . | . . . . . . . . Unidentified Prototypes 2 | . . . . 1 1 . . Parts Lost 41 | . . 4 . . 7 . 30 Power 9 | . . 2 . . 1 . 6 Propulsion 15 | . . 1 . . 3 . 11 Utility 7 | . . . . . 1 . 6 Weapon 10 | . . 1 . . 2 . 7 Highest Loss Streak 14 | . . 2 . . 6 . 14 To Critical Strikes . | . . . . . . . . Average Backups 19 | . 4 13 19 24 22 24 17 Power 1 | . . . . 1 2 4 2 Propulsion 2 | . 2 4 4 4 1 1 . Utility 5 | . . 2 4 5 8 10 6 Weapon 9 | . 2 7 11 13 9 9 7 Tool/Special . | . . . . . . . . Unused Backups 15 | . . 1 . 5 3 . 6 Power . | . . . . . . . . Propulsion 2 | . . . . 2 . . . Utility 7 | . . 1 . . 1 . 5 Weapon 6 | . . . . 3 2 . 1 Tool/Special . | . . . . . . . . Average Slot Usage (%) 94 | . 98 96 96 99 98 100 65 Engine 8 | . 14 10 5 7 6 7 6 Treads 23 | . . 19 35 30 29 30 10 Leg 2 | . 26 . . . . . . Device 18 | . 12 11 9 22 22 23 17 Storage 8 | . 14 11 9 7 7 7 5 Energy Gun 20 | . 20 19 . 18 26 30 18 Energy Cannon 9 | . . 22 36 11 3 . . Peak Build Rating 58 | 6 10 26 35 45 58 50 58 Average Rating 35 | 4 8 19 32 41 46 50 41 On Entrance 27 | . 6 10 25 35 44 50 50 Avg Prop Armor Cover (%) 11 | . . . 13 11 6 . . Naked Turns 3 | . . . . . . . 3 Heaviest Build 136 | 11 13 110 114 120 111 101 136 Greatest Support 112 | 20 20 44 88 104 112 94 94 Greatest Overweight (x) 45 | . 1 2 2 2 3 1 45 Average Overweight (x) 1 | . . 1 1 1 1 1 2 Largest Inventory Capacity 25 | 8 8 25 25 25 25 25 25 Average Capacity 22 | 6 8 20 25 25 25 25 20 Most Carried 25 | 2 8 20 23 25 25 25 25 Average Carried 19 | . 4 13 19 24 23 25 17 Final Capacity 25 | 8 8 25 25 25 25 25 10 Final Carried 25 | 2 6 20 23 25 25 25 2 Class Distribution -------------------- 60% | Tank 23% | Gunner 12% | Mutant 3% | Scavenger-Mutant Dominant Class ---------------- Mutant | -10/Materials Gunner | -9/Materials Gunner | -8/Materials Tank | -7/Factory Tank | -7/Lower Caves Tank | -7/Lower Caves Tank | -6/Factory Resources | -11 -10 -9 -8 -7 -7 -7 -6 ----------- Run | Yrd Mat Mat Mat Fac Low Low Fac Matter Collected 1457 | 204 170 253 50 210 312 . 258 Remotely . | . . . . . . . . Salvage Created 4117 | . 360 936 161 1152 724 . 784 Parts 168 | . 26 43 9 35 25 . 30 Haulers Intercepted 5 | . 1 2 . 2 . . . Recyclers Shooed 9 | . . 1 . 4 . . 4 Parts Field Recycled . | . . . . . . . . Retrieved Matter . | . . . . . . . . Parts Self-Destructed 26 | . . . . . 26 . . Prevented . | . . . . . . . . Parts Restored . | . . . . . . . . Kills | -11 -10 -9 -8 -7 -7 -7 -6 ------- Run | Yrd Mat Mat Mat Fac Low Low Fac Combat Hostiles Destroyed 66 | . 10 17 3 11 14 . 11 Guns 39 | . 10 6 . 7 10 . 6 Cannons 16 | . . 10 3 2 . . 1 AOE 1 | . . . . . . . 1 Classes Destroyed 14 | . 4 2 1 4 2 . 1 Worker 3 | . . . . 2 . . 1 Builder 2 | . . 1 . 1 . . . Hauler 5 | . 1 2 . 2 . . . Recycler 7 | . . . . 5 . . 2 Watcher 9 | . 3 3 . 2 . . 1 Swarmer 15 | . 6 3 . . 3 . 3 Grunt 26 | . 4 8 2 5 4 . 3 Brawler 1 | . . . 1 . . . . Duelist 1 | . . . . 1 . . . Sentry 8 | . . 6 . 1 . . 1 Specialist 3 | . . . . . 3 . . Hunter 4 | . . . . . 2 . 2 Programmer 7 | . . . . 4 2 . 1 Behemoth 1 | . . . . . . . 1 Best Kill Streak 6 | . 3 4 3 6 4 . 4 Combat Bots Only 5 | . 3 3 3 5 4 . 3 Max Kills in Single Turn 2 | . 1 2 1 2 1 . 1 Gunslinging . | . . . . . . . . Exploded 1 | . . . . . . . 1 Melee . | . . . . . . . . Uniques/NPCs Destroyed . | . . . . . . . . Combat | -11 -10 -9 -8 -7 -7 -7 -6 -------- Run | Yrd Mat Mat Mat Fac Low Low Fac Hostile Shots Fired 851 | . 65 101 10 199 142 . 334 Missed 279 | . 16 25 3 73 46 . 116 Hits 572 | . 49 76 7 126 96 . 218 Melee 1 | . . . . 1 . . . Projectile 571 | . 49 76 7 125 96 . 218 AOE 1 | . . . . . . . 1 Critical Strikes 15 | . 2 3 . 2 1 . 7 Part Disruptions 2 | . . . . . 2 . . Damage Taken 6882 | . 499 836 101 888 1338 . 3220 Core 1359 | . 100 161 45 69 132 . 852 Absorbed by Shields 532 | . . . . 307 225 . . Ignored by Resistances 389 | . . . . . . . 389 Core Remaining (%) 76 | 100 60 59 91 . . 71 . Volleys Fired 223 | . 43 41 5 42 45 . 47 Largest 4 | . 2 4 4 4 4 . 4 Hottest 289 | . 100 240 240 285 270 . 289 Shots Fired 642 | . 80 134 20 164 151 . 93 Gun 505 | . 80 64 . 147 150 . 64 Cannon 126 | . . 70 20 17 1 . 18 Launcher 2 | . . . . . . . 2 Special 9 | . . . . . . . 9 Kinetic 29 | . 24 . . . . . 5 Thermal 602 | . 56 134 20 164 151 . 77 Explosive 2 | . . . . . . . 2 Electromagnetic . | . . . . . . . . Robot Hit Streak 20 | . 9 11 7 20 18 . 10 Robot Miss Streak 8 | . 5 2 1 4 3 . 8 Penetration Max . | . . . . . . . . Secondary Targets 5 | . 3 . . 2 . . . Max Gunslinging Chain 1 | . 1 . . 1 . . . Shots Hit Robots 395 | . 47 76 11 104 97 . 60 Core Hits 163 | . 23 30 6 42 32 . 30 Critical Kills . | . . . . . . . . Critical Parts Destroyed . | . . . . . . . . Critical Strikes 27 | . 5 4 . 7 11 . . Burn 27 | . 5 4 . 7 11 . . Melee Attacks . | . . . . . . . . Impact . | . . . . . . . . Slashing . | . . . . . . . . Piercing . | . . . . . . . . Sneak Attacks . | . . . . . . . . Combat Hostiles . | . . . . . . . . Follow-up Attacks . | . . . . . . . . Damage Inflicted 6883 | . 561 1483 261 1865 1358 . 1355 Guns 5004 | . 561 655 . 1564 1358 . 866 Cannons 1819 | . . 828 261 301 . . 429 Explosions 60 | . . . . . . . 60 Melee . | . . . . . . . . Ramming . | . . . . . . . . Kinetic 183 | . 115 . . . . . 68 Thermal 6640 | . 446 1483 261 1865 1358 . 1227 Explosive 60 | . . . . . . . 60 Electromagnetic . | . . . . . . . . Impact . | . . . . . . . . Slashing . | . . . . . . . . Piercing . | . . . . . . . . Highest Corruption 6 | . . 1 . 4 6 6 5 Average Corruption 3 | . . 1 . 2 5 6 3 Corruption Purged . | . . . . . . . . Corruption Blocked . | . . . . . . . . Effects 106 | . . 11 . 20 65 5 5 Message Errors 22 | . . 2 . 6 13 . 1 Matter Fused 29 | . . 2 . 5 19 1 2 Heat Flow Errors 11 | . . . . 1 8 1 1 Energy Discharges 13 | . . 3 . 2 7 1 . Data Loss (minor) 18 | . . 4 . 2 10 2 . Data Loss (major) 4 | . . . . 1 3 . . Misfires 5 | . . . . 1 3 . 1 Alerts 1 | . . . . . 1 . . Weapon Failures 3 | . . . . 2 1 . . Overload Shots . | . . . . . . . . Overflow Damage 5 | . . 5 . . . . . Projectiles 5 | . . 5 . . . . . Explosions . | . . . . . . . . Melee . | . . . . . . . . Knockbacks . | . . . . . . . . Impact . | . . . . . . . . Kinetic . | . . . . . . . . Secondary . | . . . . . . . . Self-Inflicted Damage . | . . . . . . . . Shots . | . . . . . . . . Rammed . | . . . . . . . . Targets Rammed . | . . . . . . . . Kicked . | . . . . . . . . Crushed . | . . . . . . . . Highest Temperature 417 | . 270 372 417 310 256 1 360 Average Temperature 112 | . 68 101 168 111 75 1 142 Received Heat Transfer 1865 | . 174 309 63 216 233 . 870 Effects 4 | . . . 1 . . . 3 Shutdowns 1 | . . . 1 . . . . Interference 1 | . . . . . . . 1 Damage (minor) 2 | . . . . . . . 2 Siege Activations . | . . . . . . . . Martial Activations . | . . . . . . . . Shielding Activations . | . . . . . . . . Robots Disrupted . | . . . . . . . . Combat Hostiles . | . . . . . . . . Robots Corrupted . | . . . . . . . . Combat Hostiles . | . . . . . . . . Parts Fried . | . . . . . . . . Impact Corruptions . | . . . . . . . . Robots Melted 7 | . . 1 . 2 4 . . Combat Hostiles 7 | . . 1 . 2 4 . . Parts Melted 58 | . 3 14 1 13 22 . 5 Heat Transferred 16590 | . 1702 3244 407 4773 4181 . 2283 Parts Sabotaged . | . . . . . . . . Parts Stolen . | . . . . . . . . Parts Stripped . | . . . . . . . . Power Chain Reactions . | . . . . . . . . Alert | -11 -10 -9 -8 -7 -7 -7 -6 ------- Run | Yrd Mat Mat Mat Fac Low Low Fac Maximum Alert Level . | . . . . . . . . Low Security (%) 100 | 100 100 100 100 100 . . 100 Level 1 . | . . . . . . . . Level 2 . | . . . . . . . . Level 3 . | . . . . . . . . Level 4 . | . . . . . . . . Level 5 . | . . . . . . . . High Security . | . . . . . . . . Max Security . | . . . . . . . . Peak Influence 180 | . 96 180 72 154 . . 85 Initial 72 | . . 22 72 . . . . Average 41 | . 41 43 25 54 . . 21 Influence Increases 1919 | . 299 527 73 349 315 . 356 Destroy 0b10 Robot/C 1320 | . 200 340 60 220 280 . 220 Destroy 0b10 Robot/NC 135 | . 20 30 . 60 5 . 20 Destroy Leader 308 | . 48 90 10 68 30 . 62 Successful Hack 42 | . 31 11 . . . . . Disable Machine 90 | . . 45 . . . . 45 Destroy Structure 24 | . . 11 3 1 . . 9 Influence Decreases 1919 | . 244 410 245 237 427 . 356 Entered New Map 175 | . . 33 100 . 42 . . Time Decay 1526 | . 244 337 145 237 325 . 238 Lost Part 218 | . . 40 . . 60 . 118 Squads Dispatched 10 | . . 1 2 5 . . 2 Investigation 1 | . . 1 . . . . . Extermination 5 | . . . . 4 . . 1 Reinforcement 4 | . . . 2 1 . . 1 Assault . | . . . . . . . . Garrison . | . . . . . . . . Intercept . | . . . . . . . . Searches Triggered . | . . . . . . . . Construction Impeded . | . . . . . . . . Haulers Reinforced . | . . . . . . . . Active Scanning Responses . | . . . . . . . . Cargo Convoy Interrupts . | . . . . . . . . Stealth | -11 -10 -9 -8 -7 -7 -7 -6 --------- Run | Yrd Mat Mat Mat Fac Low Low Fac Distress Signals 4 | . . 1 2 . . . 1 Communications Jammed . | . . . . . . . . Distress Signals . | . . . . . . . . Times Spotted 105 | . 16 22 16 16 15 . 20 Peak Tracking Total 6 | . 4 4 6 5 4 . 6 Tactical Retreats . | . . . . . . . . Traps | -11 -10 -9 -8 -7 -7 -7 -6 ------- Run | Yrd Mat Mat Mat Fac Low Low Fac Traps Triggered 1 | . . 1 . . . . . Indirectly . | . . . . . . . . Trap Hack Attempts . | . . . . . . . . Triggered . | . . . . . . . . Disarmed . | . . . . . . . . Reprogrammed . | . . . . . . . . Reused . | . . . . . . . . Traps Extracted . | . . . . . . . . Installed . | . . . . . . . . Triggered . | . . . . . . . . Machines | -11 -10 -9 -8 -7 -7 -7 -6 ---------- Run | Yrd Mat Mat Mat Fac Low Low Fac Machines Disabled 7 | . . 3 . . 1 . 3 Max in Single Turn 1 | . . 1 . . 1 . 1 Machines Repaired . | . . . . . . . . Machines Dismantled . | . . . . . . . . Machines Sabotaged . | . . . . . . . . Overloaded Fab Kills . | . . . . . . . . Hacking | -11 -10 -9 -8 -7 -7 -7 -6 --------- Run | Yrd Mat Mat Mat Fac Low Low Fac Machines Accessed 19 | . 6 8 1 1 1 . 2 Terminals 12 | . 6 4 . 1 . . 1 Fabricators . | . . . . . . . . Repair Stations . | . . . . . . . . Recycling Units 4 | . . 2 1 . . . 1 Scanalyzers 2 | . . 2 . . . . . Garrison Access . | . . . . . . . . Total Hacks 44 | . 20 17 1 2 1 . 3 Successful 22 | . 13 6 1 . 1 . 1 Failed 22 | . 7 11 . 2 . . 2 Catastrophic 4 | . 1 3 . . . . . Database Lockouts . | . . . . . . . . Manual 17 | . 12 3 . . 1 . 1 Terminals 34 | . 20 10 . 2 . . 2 Fabricators . | . . . . . . . . Repair Stations . | . . . . . . . . Recycling Units 5 | . . 3 1 . . . 1 Scanalyzers 4 | . . 4 . . . . . Garrison Access . | . . . . . . . . Terminal Hacks 13 | . 10 1 . . 1 . 1 Record 1 | . . . . . . . 1 Robot Analysis 5 | . 5 . . . . . . Prototype ID Bank 1 | . 1 . . . . . . Open Door 1 | . . . . . 1 . . Emergency Access Points 1 | . 1 . . . . . . Locate Traps 1 | . 1 . . . . . . Registered Components 1 | . . 1 . . . . . Zone Layout 2 | . 2 . . . . . . Fabricator Hacks . | . . . . . . . . Repair Station Hacks . | . . . . . . . . Recycling Unit Hacks 2 | . . 1 1 . . . . Report Inventory 2 | . . 1 1 . . . . Scanalyzer 3 | . . 3 . . . . . Retrieve Study 3 | . . 3 . . . . . Garrison Access Hacks . | . . . . . . . . Unauthorized Hacks 4 | . 3 1 . . . . . Terminals 4 | . 3 1 . . . . . Botnet 4 | . 3 1 . . . . . Fabricators . | . . . . . . . . Repair Stations . | . . . . . . . . Recycling Units . | . . . . . . . . Scanalyzers . | . . . . . . . . Garrison Access . | . . . . . . . . Data Cores Recovered . | . . . . . . . . Used . | . . . . . . . . Hacking Detections 17 | . 6 8 . 1 . . 2 Full Trace Events 2 | . 1 1 . . . . . Feedback Events . | . . . . . . . . Feedback Blocked . | . . . . . . . . Robot Schematics Acquired . | . . . . . . . . Robots Built . | . . . . . . . . Authchips . | . . . . . . . . Time . | . . . . . . . . Total Robot Build Rating . | . . . . . . . . Part Schematics Acquired . | . . . . . . . . Parts Built . | . . . . . . . . Authchips . | . . . . . . . . Time . | . . . . . . . . Total Part Build Rating . | . . . . . . . . Part Studies Acquired 3 | . . 3 . . . . . Parts Repaired . | . . . . . . . . Time . | . . . . . . . . Parts Recycled . | . . . . . . . . Recycled Matter . | . . . . . . . . Retrieved Matter . | . . . . . . . . Retrieved Components . | . . . . . . . . Parts Scanalyzed . | . . . . . . . . Part Schematics Acquired . | . . . . . . . . Parts Damaged . | . . . . . . . . Bothacking | -11 -10 -9 -8 -7 -7 -7 -6 ------------ Run | Yrd Mat Mat Mat Fac Low Low Fac Used RIF Installer . | . . . . . . . . Robots Hacked . | . . . . . . . . Non-combat . | . . . . . . . . Combat . | . . . . . . . . Robot Hacks Applied . | . . . . . . . . Relay Couplers Released . | . . . . . . . . Fabnet Peak Effective % . | . . . . . . . . Robots Rewired . | . . . . . . . . Allies Hacked . | . . . . . . . . Hacks Repelled . | . . . . . . . . Allies | -11 -10 -9 -8 -7 -7 -7 -6 -------- Run | Yrd Mat Mat Mat Fac Low Low Fac Total Allies . | . . . . . . . . Largest Group . | . . . . . . . . Highest-Rated Group . | . . . . . . . . Highest-Rated Ally . | . . . . . . . . Total Orders . | . . . . . . . . Ally Attacks . | . . . . . . . . Total Damage . | . . . . . . . . Kills . | . . . . . . . . Allies Corrupted . | . . . . . . . . Allies Melted . | . . . . . . . . Intel | -11 -10 -9 -8 -7 -7 -7 -6 ------- Run | Yrd Mat Mat Mat Fac Low Low Fac Active Infowar (turns) . | . . . . . . . . Robot Analysis Total 5 | . 5 . . . . . . Derelict Logs Recovered 1 | . . . . . 1 . . Drone Launches . | . . . . . . . . Drone Recoveries . | . . . . . . . . Exploration | -11 -10 -9 -8 -7 -7 -7 -6 ------------- Run | Yrd Mat Mat Mat Fac Low Low Fac Turns Passed 8500 | 72 705 1504 404 2230 2470 119 996 Spaces Moved 3463 | 57 470 636 150 824 967 53 306 Core 44 | 9 . . . . . . 35 Treads 2626 | . . 464 150 824 967 53 168 Legs 475 | 48 400 . . . . . 27 Wheels 76 | . . . . . . . 76 Hover 242 | . 70 172 . . . . . Flight . | . . . . . . . . Fastest Speed 50 | 50 56 56 225 231 160 228 50 Average Speed 213 | 108 110 197 243 242 234 228 257 Slowest Speed 2300 | 120 130 305 305 317 400 228 2300 Overloaded Moves . | . . . . . . . . Propulsion Burnouts . | . . . . . . . . Robots Hopped . | . . . . . . . . Potential Cave-ins . | . . . . . . . . Cave-ins Triggered . | . . . . . . . . Exploration Rate (%) 34 | 5 70 52 18 24 91 10 8 Regions Visited 7 Branch Regions 2 Pre-discovered Areas . | . . . . . . . . Known Exits Taken . | . . . . . . . . Unknown Exits Taken 7 | 1 1 1 1 1 1 1 . Scrap Searched 3 | . . . . . 3 . . Spaces Dug 3 | . . . 3 . . . . Terrain Destroyed 19 | . . 8 3 . . . 8 Melee . | . . . . . . . . Projectile 11 | . . 8 3 . . . . AOE 8 | . . . . . . . 8 Terrain Rammed . | . . . . . . . . Walls Destroyed . | . . . . . . . . Machines Disabled . | . . . . . . . . Actions | -11 -10 -9 -8 -7 -7 -7 -6 --------- Run | Yrd Mat Mat Mat Fac Low Low Fac Total 4114 | 64 575 789 176 959 1070 52 429 Wait 223 | . 36 72 14 43 21 . 37 Move 3456 | 56 469 635 149 823 966 52 306 Hop . | . . . . . . . . Pick Up 53 | 2 5 15 3 15 9 . 4 Fast Attach 24 | 6 1 5 1 . 2 . 9 Attach 33 | . . 2 2 2 9 . 18 Detach 4 | . . . . . 1 . 3 Swap 51 | . 13 12 2 16 7 . 1 Drop 47 | . 8 7 . 18 10 . 4 Fire 223 | . 43 41 5 42 45 . 47 Melee . | . . . . . . . . Ram . | . . . . . . . . Kick . | . . . . . . . . Crush . | . . . . . . . . Escape Stasis . | . . . . . . . . Rewire . | . . . . . . . . Trap . | . . . . . . . . Miscellaneous . | . . . . . . . . Route ------- -11/Scrapyard -10/Materials (discovered 2 exits: *Mat x2) -9/Materials (discovered 2 exits: *Mat x2) -8/Materials -7/Factory -7/Lower Caves -7/Lower Caves -6/Factory History --------- Turn | Location | Event 4 | -11/Scrapyard | Discovered new exit (range 16) 73 | -11/Scrapyard | Entered Materials 418 | -10/Materials | Discovered new exit (range 14) 545 | -10/Materials | Discovered new exit (range 16) 778 | -10/Materials | Entered another Materials area 778 | -9/Materials | Evolved 2 slots: Weapon x2 1213 | -9/Materials | Build established: Gunner 1441 | -9/Materials | Discovered new exit (range 14) 2178 | -9/Materials | Discovered new exit (range 5) 2282 | -9/Materials | Entered another Materials area 2282 | -8/Materials | Evolved 2 slots: Propulsion x2 2532 | -8/Materials | Met 7R-MNS 2644 | -8/Materials | Discovered new exit (range 16) 2686 | -8/Materials | Entered Factory 2686 | -7/Factory | Evolved 2 slots: Utility x2 2687 | -7/Factory | Caught up to 7R-MNS 3127 | -7/Factory | Build established: Tank 4864 | -7/Factory | Discovered new exit (range 16) 4916 | -7/Factory | Entered Lower Caves 5000 | -7/Lower Caves | Acquired the password to a Derelict Tinkerer's latest research 5018 | -7/Lower Caves | Found Prototype Special Weapon 5123 | -7/Lower Caves | Identified Molecular Deconstructor 5533 | -7/Lower Caves | Caught by Unaware searching for contraband prototypes 5719 | -7/Lower Caves | Caught by Unaware searching for contraband prototypes 6065 | -7/Lower Caves | Lost 6 parts (1p3n2w) 7304 | -7/Lower Caves | Learned location of 1 exit from Proximity Caves 7359 | -7/Lower Caves | Discovered new exit (range 12) 7386 | -7/Lower Caves | Entered another Lower Caves area 7498 | -7/Lower Caves | Discovered new exit (range 2) 7505 | -7/Lower Caves | Entered Factory 7505 | -6/Factory | Evolved 2 slots: Power x1, Utility x1 7923 | -6/Factory | Lost 5 parts (4n1u) 8193 | -6/Factory | Spotted B-75 Beast 8254 | -6/Factory | Destroyed B-75 Beast 8257 | -6/Factory | Released all parts (4) 8283 | -6/Factory | Lost 14 parts (4p4u6w) 8317 | -6/Factory | Core integrity fell below 50% 8453 | -6/Factory | Core integrity fell below 20% 8483 | -6/Factory | Lost 4 parts (2n1u1w) 8500 | -6/Factory | Build established: Mutant 8501 | -6/Factory | Destroyed by S-27 Virus with Autogun Last Messages --------------- 08437_ Nuclear Reactor explodes. 08439_ Recycling Unit disabled. 08439_ Launcher Loader tumbles out of recycling unit. 08439_ Lgt. Fission Core tumbles out of recycling unit. 08439_ Com. Wheel destroyed. 08448_ Entropy package works its way towards Y-54 Guardian core. 08452_ Y-54 Guardian core destabilizing. 08452_ Molecular Deconstructor destroyed. 08453_ Y-54 Guardian core destabilizing. 08453_ Y-54 Guardian destroyed. 08461_ Acquired VSS Leg. 08466_ The unstable cave ceiling collapses. 08467_ Acquired VSS Leg. 08474_ The unstable cave ceiling collapses. 08476_ R-10 Processor collects Imp. Heat Sink. 08479_ Acquired Lgt. Fission Core. 08494_ VSS Leg destroyed. 08495_ The unstable cave ceiling collapses. 08495_ Lgt. Fission Core destroyed. 08497_ VSS Leg destroyed. Map ----- +----------------------------------------------------+ | ?????????????????????# #?????# # | | ????????#+#########+######/#############+######### | | ????????# ^ #????? | | ??????### ^^ #????? | | ??????? #????? | | ????????# ^"""" """" %% #####? | | ????????# ^ """" """% % % | | ????????# """"%%""" ############+######## | | ??####### % ^ #?????# #?? | | ??? %""% %""" #?????# = #?? | | ???? %%%%"% %""" #?????# ! #?? | | ??? "" """ %%%%%%""" #?????# #?? | | ? """ ""% % #?????# """ """ #?? | | ? "" """ #?????# """ """ #?? | | ?# ""F" % %#####+#############?# """ """ #?? | | ?# """" ""%!%# [ [ #?# #?? | | ?# """ ""% # T #?# """ """ #?? | | ?# "%% %# #?# """ """ #?? | | # # """ """ """ """ #?? """ """ #?? | | + """ " # """ """ """ """ #???? #?? | | ?# """ # """ """ """ """ #?????##########?? | | ?# """ # #??????? ???? | | ?# % m######################???? ???? | | ?# """ % #???? ""???? | | ?# """ "% % #???? """ #? | | ?# """ " @ #???? """ #? | | ?# ###?# ? | | ?# s ### """ /? | | ?# #######+####### ### s# # """ #? | | ?# ??# # p# s """ #? | | ?#???# + ; s #? | | ?????# ######### """ #? | | ?????# #???????# """ #? | | ?????# """ #??????## """ #? | | ?????# """ #??????## #? | | ?????# """ ""#??????# #? | | ?????# ""#??????# " " #? | | ?????# """ Y"#??????# = ! ""G"" #? | | ?????# """ ""#??????# #? | | ?????# """ ""#??????## ##########? | | ?????# #???????# #?????????? | | ?????##############???????##% ######?????????? | | ???????????????????????????########??????????????? | | ?????????????????????????????????????????????????? | | ?????????????????????????????????????????????????? | | ?????????????????????????????????????????????????? | | ?????????????????????????????????????????????????? | | ?????????????????????????????????????????????????? | | ?????????????????????????????????????????????????? | | ?????????????????????????????????????????????????? | +----------------------------------------------------+ Best States ------------- Heat Dissipation 65 Coolant Potential 50 Energy Generation 30 Energy Capacity 505 Matter Stores 300 Matter Capacity 300 Sight Range 16 Terrain Scan Density 10 Base Temperature (-) 100 Armor Coverage 225 Resistance: KI 30 Resistance: TH 20 Resistance: EM 25 Evasion (%) 57 Recoil Reduction 4 Item Schematics ----------------- None Robot Schematics ------------------ None Fabricated ------------ Nothing Repaired ---------- Nothing Studied --------- Beam Rifle | -9/Materials | Hacked Lgt. Treads | -9/Materials | Hacked Lgt. Ion Engine | -9/Materials | Hacked Alien Tech Used ----------------- None Achievements -------------- None Challenges ------------ None Game ------ Seed FireVortexMediator Manual? 0 Play Time 00:53:02 Cumulative 218.2 hours Start 2025.10.31 @ 10:45:22 End 2025.10.31 @ 14:08:35 Sessions 3 Manual Loads 0 Difficulty Rogue Special Mode None Game No. 265 Rogue 91 Adventurer 174 Explorer 0 Win Type - Total 1 Types 1/0/0/0/0/0/0/0/0/0 Lore% 56 Gallery% 58 Achievement% 40 Wizard Run 0 Options --------- Layout 0 ASCII 0 Keyboard 1 Movement Numpad Keybinds 0 Fullscreen 1 Font 18/Terminus Map View 76x50 Zoom Use 0% Tactical HUD 1 Map Filters NONE Filters NONE Steam 1 RUN: f9a2f6cb-c7ab-4826-845b-fd04d7e8d4b9